Cogmind - Beta 17 @@@ ROGUE MODE // 2026.08.14 @ 22:43:17 Player: Alicianrone Result: Destroyed by D-53 Grenadier with Mini Grenade Launcher Performance ------------- Evolutions (0) 0 Regions Visited (2) 400 Robots Destroyed (19) 95 Value Destroyed (405) 405 Prototype IDs (0) 0 Alien Tech Used (0) 0 Bonus (74) 74 TOTAL SCORE: 974 Bonus ------- Follower Combat Kills 74 Cogmind --------- Core Integrity 0/250 Matter 219/300 Energy 27/250 System Corruption 2% Temperature Cool (40) Movement Treading (160) Location -10/Mines Parts ------- > --- POWER (1) -------- Ion Engine > --- PROPULSION (2) --- Light Treads Light Treads > --- UTILITY (2) ------ Large Storage Unit Seismic Detector > --- WEAPON (2) ------- Particle Gun Beam Cannon > --- INVENTORY (15) --- Wheel Wheel Compact Wheel Small Storage Unit Hacking Suite Grenade Launcher Datajack Peak State ------------ > --- POWER ------------ Ion Engine > --- PROPULSION ------- Light Treads Light Treads > --- UTILITY ---------- Large Storage Unit Seismic Detector > --- WEAPON ----------- Particle Gun Beam Cannon > --- INVENTORY -------- Light Treads Wheel Wheel Compact Wheel Small Storage Unit Hacking Suite Grenade Launcher Datajack [Rating: 9] Favorites ----------- Power Ion Engine Engine Ion Engine Propulsion Light Treads Treads Light Treads Wheel Wheel Utility Large Storage Unit Device Seismic Detector Storage Large Storage Unit Weapon EM Pulse Gun Energy Gun EM Pulse Gun Energy Cannon Beam Cannon Ballistic Gun Light Assault Rifle Ballistic Cannon Light Cannon Launcher Grenade Launcher Build | -11 -10 -10 ------- Run | Yrd Mat Min Slots Evolved . | . . . Power . | . . . Propulsion . | . . . Utility . | . . . Weapon . | . . . Parts Attached 19 | 7 5 7 Power 2 | 1 . 1 Engine 2 | 1 . 1 Core . | . . . Reactor . | . . . Propulsion 7 | 2 2 3 Treads 5 | . 2 3 Leg . | . . . Wheel 2 | 2 . . Hover . | . . . Flight . | . . . Utility 3 | 2 1 . Device 1 | 1 . . Storage 2 | 1 1 . Processor . | . . . Hackware . | . . . Protection . | . . . Artifact . | . . . Weapon 7 | 2 2 3 Energy Gun 2 | 1 . 1 Energy Cannon 1 | . . 1 Ballistic Gun 1 | 1 . . Ballistic Cannon 2 | . 1 1 Launcher 1 | . 1 . Special Weapon . | . . . Impact Weapon . | . . . Slashing Weapon . | . . . Piercing Weapon . | . . . Special Melee Weapon . | . . . Unidentified Prototypes . | . . . Parts Lost 7 | . . 7 Power 1 | . . 1 Propulsion 3 | . . 3 Utility . | . . . Weapon 3 | . . 3 Highest Loss Streak 7 | . . 7 To Critical Strikes . | . . . Average Backups 11 | 1 10 13 Power . | . . . Propulsion 4 | 1 4 5 Utility 1 | . 1 2 Weapon 2 | . 2 3 Tool/Special . | . . . Unused Backups 3 | . . 3 Power . | . . . Propulsion 1 | . . 1 Utility 1 | . . 1 Weapon . | . . . Tool/Special 1 | . . 1 Average Slot Usage (%) 98 | . 98 98 Engine 13 | . 14 13 Treads 18 | . 26 4 Wheel 9 | . 1 23 Device 12 | . 12 14 Storage 14 | . 14 14 Energy Gun 13 | . 13 13 Ballistic Gun 2 | . 4 . Ballistic Cannon 11 | . 9 13 Peak Build Rating 9 | 7 8 9 Average Rating 7 | 4 7 7 On Entrance 5 | . 7 8 Avg Prop Armor Cover (%) . | . . . Naked Turns . | . . . Heaviest Build 31 | 14 31 31 Greatest Support 40 | 26 40 40 Greatest Overweight (x) 1 | . . 1 Average Overweight (x) . | . . . Largest Inventory Capacity 15 | 8 15 15 Average Capacity 14 | 7 14 15 Most Carried 14 | 3 14 14 Average Carried 11 | 1 10 13 Final Capacity 15 | 8 15 15 Final Carried 14 | 3 14 7 Class Distribution -------------------- 100% | Mutant Dominant Class ---------------- Mutant | -10/Materials Mutant | -10/Mines Resources | -11 -10 -10 ----------- Run | Yrd Mat Min Matter Collected 537 | 233 274 30 Remotely . | . . . Salvage Created 447 | 14 433 . Parts 41 | 5 36 . Haulers Intercepted 2 | . 2 . Recyclers Shooed . | . . . Parts Field Recycled . | . . . Retrieved Matter . | . . . Parts Self-Destructed . | . . . Prevented . | . . . Parts Restored . | . . . Kills | -11 -10 -10 ------- Run | Yrd Mat Min Combat Hostiles Destroyed 12 | . 12 . Guns 4 | . 4 . AOE 8 | . 8 . Classes Destroyed 6 | 1 5 . Tunneler 1 | 1 . . Hauler 2 | . 2 . Operator 1 | . 1 . Watcher 3 | . 3 . Swarmer 6 | . 6 . Grunt 6 | . 6 . Best Kill Streak 4 | 1 4 . Combat Bots Only 4 | . 4 . Max Kills in Single Turn 3 | 1 3 . Gunslinging . | . . . Exploded 3 | . 3 . Melee . | . . . Uniques/NPCs Destroyed . | . . . Combat | -11 -10 -10 -------- Run | Yrd Mat Min Hostile Shots Fired 55 | . 34 21 Missed 7 | . 7 . Hits 48 | . 27 21 Projectile 48 | . 27 21 AOE 20 | . . 20 Critical Strikes 1 | . 1 . Damage Taken 1192 | . 315 877 Core 266 | . 28 238 Absorbed by Shields . | . . . Core Remaining (%) 100 | 100 . . Volleys Fired 50 | 2 41 7 Largest 2 | 2 2 2 Hottest 90 | 60 70 90 Shots Fired 91 | 4 76 11 Gun 60 | 4 55 1 Cannon 25 | . 15 10 Launcher 6 | . 6 . Special . | . . . Kinetic 43 | 2 35 6 Thermal 4 | . . 4 Explosive 6 | . 6 . Electromagnetic 38 | 2 35 1 Robot Hit Streak 7 | 4 7 1 Robot Miss Streak 4 | . 4 3 Penetration Max . | . . . Secondary Targets . | . . . Shots Hit Robots 47 | 4 40 3 Core Hits 29 | 1 27 1 Critical Kills . | . . . Critical Parts Destroyed . | . . . Critical Strikes 2 | . 2 . Blast 2 | . 2 . Melee Attacks . | . . . Impact . | . . . Slashing . | . . . Piercing . | . . . Sneak Attacks . | . . . Combat Hostiles . | . . . Follow-up Attacks . | . . . Damage Inflicted 1145 | 44 1011 90 Guns 403 | 44 359 . Cannons 205 | . 115 90 Explosions 537 | . 537 . Melee . | . . . Ramming . | . . . Kinetic 258 | 16 169 73 Thermal 47 | . 30 17 Explosive 507 | . 507 . Electromagnetic 333 | 28 305 . Impact . | . . . Slashing . | . . . Piercing . | . . . Highest Corruption 2 | . 2 2 Average Corruption 2 | . 2 2 Corruption Purged . | . . . Corruption Blocked . | . . . Effects 8 | . 4 4 Message Errors 3 | . 2 1 Matter Fused 3 | . 1 2 Energy Discharges 1 | . . 1 Data Loss (major) 1 | . 1 . Overload Shots . | . . . Overflow Damage . | . . . Projectiles . | . . . Explosions . | . . . Melee . | . . . Knockbacks 3 | . . 3 Impact . | . . . Kinetic 3 | . . 3 Secondary . | . . . Self-Inflicted Damage 24 | . 24 . Shots 2 | . 2 . Rammed . | . . . Targets Rammed . | . . . Kicked . | . . . Crushed . | . . . Highest Temperature 58 | 20 58 40 Average Temperature 22 | 15 23 18 Received Heat Transfer 144 | . 135 9 Siege Activations . | . . . Martial Activations . | . . . Shielding Activations . | . . . Robots Disrupted . | . . . Combat Hostiles . | . . . Robots Corrupted . | . . . Combat Hostiles . | . . . Parts Fried . | . . . Impact Corruptions . | . . . Robots Melted . | . . . Combat Hostiles . | . . . Parts Melted . | . . . Heat Transferred 87 | . 50 37 Parts Sabotaged . | . . . Parts Stolen . | . . . Parts Stripped . | . . . Power Chain Reactions 1 | . 1 . Alert | -11 -10 -10 ------- Run | Yrd Mat Min Maximum Alert Level 1 | . 1 . Low Security (%) 74 | 100 58 100 Level 1 25 | . 41 . Level 2 . | . . . Level 3 . | . . . Level 4 . | . . . Level 5 . | . . . High Security . | . . . Max Security . | . . . Peak Influence 254 | . 254 70 Initial 70 | . . 70 Average 102 | . 160 17 Influence Increases 536 | 5 475 56 Destroy 0b10 Robot/C 280 | . 240 40 Destroy 0b10 Robot/NC 35 | 5 30 . Destroy Leader 70 | . 60 10 Allied During Kill 6 | . . 6 Successful Hack 7 | . 7 . Select Force Hacks 30 | . 30 . Disable Machine 60 | . 60 . Destroy Structure 18 | . 18 . Lose Combat Pursuer 30 | . 30 . Influence Decreases 536 | 5 292 239 Entered New Map 113 | . . 113 Time Decay 401 | 5 292 104 Lost Part 20 | . . 20 Lost Ally 2 | . . 2 Squads Dispatched 2 | . 2 . Investigation 1 | . 1 . Extermination . | . . . Reinforcement 1 | . 1 . Assault . | . . . Garrison . | . . . Intercept . | . . . Searches Triggered . | . . . Construction Impeded . | . . . Haulers Reinforced . | . . . Active Scanning Responses . | . . . Cargo Convoy Interrupts . | . . . Stealth | -11 -10 -10 --------- Run | Yrd Mat Min Distress Signals 2 | . 1 1 Communications Jammed . | . . . Distress Signals . | . . . Times Spotted 23 | . 20 3 Peak Tracking Total 4 | . 4 2 Tactical Retreats 2 | . 2 . Traps | -11 -10 -10 ------- Run | Yrd Mat Min Traps Triggered 1 | . 1 . Indirectly . | . . . Trap Hack Attempts . | . . . Triggered . | . . . Disarmed . | . . . Reprogrammed . | . . . Reused . | . . . Traps Extracted . | . . . Installed . | . . . Triggered . | . . . Machines | -11 -10 -10 ---------- Run | Yrd Mat Min Machines Disabled 4 | . 4 . Max in Single Turn 1 | . 1 . Machines Repaired . | . . . Machines Dismantled . | . . . Machines Sabotaged . | . . . Overloaded Fab Kills . | . . . Hacking | -11 -10 -10 --------- Run | Yrd Mat Min Machines Accessed 2 | . 2 . Terminals 1 | . 1 . Fabricators . | . . . Repair Stations . | . . . Recycling Units 1 | . 1 . Scanalyzers . | . . . Garrison Access . | . . . Total Hacks 2 | . 2 . Successful 2 | . 2 . Failed . | . . . Catastrophic . | . . . Database Lockouts . | . . . Manual 2 | . 2 . Terminals 1 | . 1 . Fabricators . | . . . Repair Stations . | . . . Recycling Units 1 | . 1 . Scanalyzers . | . . . Garrison Access . | . . . Terminal Hacks 1 | . 1 . Robot Schematic 1 | . 1 . Fabricator Hacks . | . . . Repair Station Hacks . | . . . Recycling Unit Hacks . | . . . Scanalyzer . | . . . Garrison Access Hacks . | . . . Unauthorized Hacks 1 | . 1 . Terminals . | . . . Fabricators . | . . . Repair Stations . | . . . Recycling Units 1 | . 1 . Tunnel 1 | . 1 . Scanalyzers . | . . . Garrison Access . | . . . Data Cores Recovered . | . . . Used . | . . . Hacking Detections . | . . . Full Trace Events . | . . . Feedback Events . | . . . Feedback Blocked . | . . . Robot Schematics Acquired 1 | . 1 . Robots Built . | . . . Authchips . | . . . Time . | . . . Total Robot Build Rating . | . . . Part Schematics Acquired . | . . . Parts Built . | . . . Authchips . | . . . Time . | . . . Total Part Build Rating . | . . . Part Studies Acquired . | . . . Parts Repaired . | . . . Time . | . . . Parts Recycled . | . . . Recycled Matter . | . . . Retrieved Matter . | . . . Retrieved Components . | . . . Parts Scanalyzed . | . . . Part Schematics Acquired . | . . . Parts Damaged . | . . . Bothacking | -11 -10 -10 ------------ Run | Yrd Mat Min Used RIF Installer . | . . . Robots Hacked . | . . . Non-combat . | . . . Combat . | . . . Robot Hacks Applied . | . . . Relay Couplers Released . | . . . Fabnet Peak Effective % . | . . . Robots Rewired . | . . . Allies Hacked . | . . . Hacks Repelled . | . . . Allies | -11 -10 -10 -------- Run | Yrd Mat Min Total Allies 2 | . . 2 Largest Group 2 | . . 2 Highest-Rated Group 42 | . . 42 Highest-Rated Ally 31 | . . 31 Total Orders . | . . . Ally Attacks 10 | . . 10 Total Damage 145 | . . 145 Kills 2 | . . 2 Allies Corrupted . | . . . Allies Melted . | . . . Intel | -11 -10 -10 ------- Run | Yrd Mat Min Active Infowar (turns) 978 | 13 585 380 Seismic 978 | 13 585 380 Robot Analysis Total . | . . . Derelict Logs Recovered 3 | . . 3 Drone Launches . | . . . Drone Recoveries . | . . . Exploration | -11 -10 -10 ------------- Run | Yrd Mat Min Turns Passed 1123 | 56 676 391 Spaces Moved 678 | 37 329 312 Core 1 | 1 . . Treads 325 | . 305 20 Legs . | . . . Wheels 352 | 36 24 292 Hover . | . . . Flight . | . . . Fastest Speed 50 | 50 90 105 Average Speed 129 | 87 154 108 Slowest Speed 160 | 90 160 160 Overloaded Moves . | . . . Propulsion Burnouts . | . . . Robots Hopped . | . . . Potential Cave-ins . | . . . Cave-ins Triggered . | . . . Exploration Rate (%) 47 | 4 70 67 Regions Visited 2 Branch Regions 1 Pre-discovered Areas 4 | . 1 3 Known Exits Taken . | . . . Unknown Exits Taken 2 | 1 1 . Scrap Searched . | . . . Spaces Dug . | . . . Terrain Destroyed 22 | . 22 . Melee . | . . . Projectile . | . . . AOE 22 | . 22 . Terrain Rammed . | . . . Walls Destroyed . | . . . Machines Disabled . | . . . Actions | -11 -10 -10 --------- Run | Yrd Mat Min Total 825 | 53 421 351 Wait 57 | 5 31 21 Move 676 | 36 328 312 Hop . | . . . Pick Up 13 | 3 10 . Fast Attach 8 | 7 1 . Attach 8 | . 1 7 Detach 1 | . 1 . Swap 11 | . 7 4 Drop 1 | . 1 . Fire 50 | 2 41 7 Melee . | . . . Ram . | . . . Kick . | . . . Crush . | . . . Escape Stasis . | . . . Rewire . | . . . Trap . | . . . Miscellaneous . | . . . Route ------- -11/Scrapyard -10/Materials (discovered 4 exits: [*Mat x2] / [*Min x2]) -10/Mines (discovered 3 exits: [*Mat x2] / [*Sub]) History --------- Turn | Location | Event 5 | -11/Scrapyard | Discovered new exit (range 15) 57 | -11/Scrapyard | Entered Materials 275 | -10/Materials | Discovered new exit (range 5) 337 | -10/Materials | Build established: Mutant 479 | -10/Materials | Discovered new exit (range 10) 504 | -10/Materials | Discovered new exit (range 16) 560 | -10/Materials | Discovered new exit (range 9) 733 | -10/Materials | Entered Mines 741 | -10/Mines | Assembled infested the area 746 | -10/Mines | Assisted by a Guerilla fighting off Assembled 757 | -10/Mines | Met a Derelict bent on vengeance 770 | -10/Mines | Discovered new exit (range 12) 890 | -10/Mines | Discovered new exit (range 3) 927 | -10/Mines | Learned location of Storage (-9) 930 | -10/Mines | Learned location of Zion (-6) 930 | -10/Mines | Discovered new exit (range 6) 1113 | -10/Mines | Core integrity fell below 50% 1121 | -10/Mines | Core integrity fell below 20% 1124 | -10/Mines | Destroyed by D-53 Grenadier with Mini Grenade Launcher Last Messages --------------- 01100_ K-01 Serf collects debris. 01102_ The unstable cave ceiling collapses. 01102_ U-05 Engineer destroyed. 01104_ D-53 Grenadier knocked back. 01104_ K-01 Serf collects debris. 01105_ Lgt. Cannon destroyed. 01106_ The unstable cave ceiling collapses. 01107_ K-01 Serf collects debris. 01108_ D-53 Grenadier knocked back. 01109_ D-53 Grenadier destroyed. 01110_ Lgt. Treads destroyed. 01112_ Lgt. Cannon destroyed. 01112_ K3-ZJN(g) destroyed. 01113_ The unstable cave ceiling collapses. 01113_ K-01 Serf collects debris. 01114_ The unstable cave ceiling collapses. 01114_ K-01 Serf destroyed. 01119_ The unstable cave ceiling collapses. 01120_ Lgt. Treads destroyed. 01122_ The unstable cave ceiling collapses. Map ----- +----------------------------------------------------+ | ???????????## ##????????####### | | ????????#### #???????????????? | | ???????## #???????????????# | | ???????# ##???????????????# | | ???????# ###????????????????# | | ???????# ##??????????????????? | | ???????# ##??????????????????? | | ???????# ##?????????????????? | | ???????# ##????????????????? | | ???????# """ #????????????????? | | ???????## """ #????????????????? | | ????????# """ #########????????? | | ????????# #????????? | | ??####??# ##???????? | | ?## #?## ######## ### ###?? | | ?# % ??#####??????# | | ?# ?????????????### #### ##?? | | ?? % #?????####?????# #???????? | | ??? % ????## ##????# ##??????? | | ???? ?##?# ###### ##?????? | | ????#d # ### ## #?????? | | ????# ## z #?????? | | ???## #?????? | | ???# ## #?????? | | ???# ####### ##?????? | | ??# @ ##?????####??????? | | ??# ##????????????????? | | ??# ##?????????????????? | | ??## ##??????????????????? | | ???### ##???????????????????? | | ?????#######????????????????????? | | ????????????????????????????????? | | ????????????????????????????????? | | | | | | | | | | | | | | | | | | | | | | | | | | | | | | | | | | | +----------------------------------------------------+ Best States ------------- Heat Dissipation 25 Energy Generation 10 Energy Capacity 250 Matter Stores 300 Matter Capacity 300 Sight Range 16 Terrain Scan Density 10 Evasion (%) 42 Recoil Reduction 2 Item Schematics ----------------- None Robot Schematics ------------------ M-13 Machinist | -10/Materials | Hacked Fabricated ------------ Nothing Repaired ---------- Nothing Studied --------- None Alien Tech Used ----------------- None Achievements -------------- None Challenges ------------ None Game ------ Seed GatlingForceBefriender Manual? 1 Play Time 00:08:35 Cumulative 1014.3 hours Start 2026.08.14 @ 22:36:49 End 2026.08.14 @ 22:43:17 Sessions 1 Manual Loads 0 Difficulty Rogue Special Mode None Game No. 284 Rogue 284 Adventurer 0 Explorer 0 Win Type - Total 44 Types 13/9/10/2/2/0/4/1/1/2 Lore% 97 Gallery% 91 Achievement% 87 Wizard Run 0 Options --------- Layout 1 ASCII 0 Keyboard 0 Movement Mouse Keybinds 0 Fullscreen 2 Font 32/SmallcapsGlow Map View 50x35 Zoom Use 0% Tactical HUD 1 Map Filters NONE Filters NONE Steam 1 RUN: 7f79b348-33ba-4e2c-a3ba-4c8f144f3969